bitfinex-derivatives/quotes_ETHF0:USTF0_20250101
["timestamp","ask_amount","ask_price","bid_price","bid_amount"]
[1735724609648,0.459,3325.9,3325.7,0.30126]
[1735724609947,0.474,3325.8,3325.7,0.30126]
[1735724610337,0.474,3325.8,3325.4,0.4744]
[1735724610338,0.459,3325.9,3325.8,0.30125]
[1735724612448,3.2078,3326.0,3325.9,0.30124]
[1735724612842,3.2078,3326.0,3325.7,0.30126]
[1735724613047,3.50904,3326.0,3325.7,0.30126]
[1735724613355,3.2078,3326.0,3325.8,0.30125]
[1735724614245,3.96803,3326.1,3325.8,0.30125]
[1735724615654,3.96803,3326.1,3325.4,0.9222]
[1735724615857,3.96803,3326.1,3325.8,0.30124]
[1735724616067,3.96803,3326.1,3325.9,0.30124]
[1735724616353,3.6668,3326.1,3325.9,0.30124]
[1735724616750,3.6668,3326.1,3325.5,2.30302014]
[1735724616751,3.2078,3326.1,3326.0,0.30123]
[1735724618352,3.2078,3326.1,3326.0,0.78443]
[1735724621059,3.2078,3326.1,3326.0,0.30123]
[1735724626662,2.34695825,3326.6,3326.5,0.30119]
[1735724626859,2.82855825,3326.6,3326.5,1.52219]
[1735724627762,0.4816,3326.6,3326.5,1.52219]
[1735724629260,0.4816,3326.6,3326.5,3.82521014]
[1735724629456,0.4816,3326.6,3326.5,4.1954077]
[1735724630358,5.99955825,3327.0,3326.5,3.52402014]
[1735724630662,3.2078,3327.0,3326.9,0.30115]
[1735724632056,3.6715,3327.0,3326.9,0.30115]
[1735724632560,0.30117,3326.8,3326.5,2.60421014]
[1735724632761,0.4686,3326.7,3326.6,1.221]
[1735724632957,0.4686,3326.7,3326.6,1.52218]
[1735724633462,3.97265,3327.0,3326.7,0.30117]
[1735724633665,2.34695825,3326.9,3326.7,0.30117]
[1735724633857,2.34695825,3326.9,3326.6,1.221]
[1735724634164,2.34695825,3326.9,3326.8,0.30116]
[1735724634866,6.47215825,3327.0,3326.8,0.30116]
[1735724637465,6.47215825,3327.0,3326.4,3.2078]
[1735724637660,2.64811825,3326.9,3326.5,1.52218]
[1735724637859,0.30116,3326.8,3326.5,1.52218]
[1735724638359,0.30116,3326.8,3326.5,1.221]
[1735724638760,0.30116,3326.8,3326.5,1.52218]
[1735724639268,0.30117,3326.7,3326.5,1.221]
[1735724639558,2.34695825,3326.6,3326.5,1.52219]
[1735724639761,2.81435825,3326.6,3326.5,1.52219]
[1735724640164,2.81435825,3326.6,3326.4,0.30119]
[1735724640359,3.11553825,3326.6,3326.3,1.5222]
[1735724640562,0.76858,3326.6,3326.3,1.5222]
[1735724640762,0.4674,3326.6,3326.3,1.5222]
[1735724640963,0.76858,3326.6,3326.3,1.221]
[1735724641159,0.76858,3326.6,3326.3,1.5222]
[1735724641567,0.76858,3326.6,3326.4,0.3012]
[1735724641967,0.30119,3326.5,3326.3,1.5222]
[1735724642173,0.4896,3326.4,3326.3,1.5222]
[1735724648277,0.7908,3326.4,3326.3,1.221]
[1735724648479,1.2409,3326.4,3326.3,1.221]
[1735724649178,0.9397,3326.4,3326.3,1.221]
[1735724649782,0.4896,3326.4,3326.3,1.221]
[1735724650165,0.4896,3326.4,3326.3,1.52221]
[1735724651269,2.81435825,3326.6,3326.5,0.30119]
[1735724651471,2.34695825,3326.7,3326.6,0.30118]
[1735724651979,2.34695825,3326.7,3326.6,0.74868]
[1735724652177,2.34695825,3326.7,3326.6,1.10985457]
[1735724652878,0.4765,3326.9,3326.8,0.30116]
[1735724653072,3.6906,3327.0,3326.9,0.30115]
[1735724654678,3.6906,3327.0,3326.9,1.52512691]
[1735724656378,3.6906,3327.0,3326.9,0.77191035]
[1735724657079,0.4828,3327.0,3326.9,0.77191035]
[1735724658372,5.55475825,3327.1,3327.0,0.30114]
[1735724658774,5.55475825,3327.1,3327.0,1.23654]
[1735724658979,5.55475825,3327.1,3327.0,1.70730035]
[1735724659783,5.55475825,3327.1,3327.0,1.23654]
[1735724660776,0.30114,3327.0,3326.5,4.72830715]
[1735724660974,7.85777839,3327.1,3326.5,4.72830715]
[1735724660975,5.81200014,3326.6,3326.5,4.72830715]
[1735724661280,5.81200014,3326.6,3326.5,3.99060715]
[1735724661582,0.3012,3326.4,3326.3,7.09246073]
[1735724662473,0.3012,3326.4,3325.4,0.4501]
[1735724662474,0.30126,3325.8,3325.4,0.4501]
[1735724662674,0.30126,3325.8,3325.4,0.75138]
[1735724662984,0.30126,3325.7,3325.4,0.75138]
[1735724663179,3.2078,3325.9,3325.4,0.4501]
[1735724663581,0.30127,3325.7,3325.4,0.4501]
[1735724664085,2.3481963,3325.6,3325.4,0.4501]
[1735724664979,2.3481963,3325.7,3325.4,0.75138]
[1735724665982,2.3481963,3325.7,3325.4,0.4501]
[1735724666383,2.3481963,3325.7,3325.4,0.75139]
[1735724666582,2.3481963,3325.7,3325.5,0.30128]
[1735724667387,2.3481963,3325.8,3325.5,0.30128]
[1735724669885,5.8572363,3325.9,3325.5,0.30128]
[1735724671291,5.5559963,3325.9,3325.5,0.30128]
[1735724671595,5.5559963,3325.9,3325.5,0.77378]
[1735724671781,5.5559963,3325.9,3325.8,2.30302014]
[1735724671983,5.5559963,3325.9,3325.8,2.60427014]
[1735724671984,1.6103963,3325.9,3325.8,2.60427014]
[1735724672488,3.52229446,3326.1,3326.0,0.30123]
[1735724672489,0.24664429,3326.1,3326.0,0.30123]
[1735724672695,0.64854355,3326.2,3326.1,0.30122]
[1735724672989,5.87049076,3326.4,3326.1,0.30122]
[1735724672990,3.51738575,3326.6,3326.5,0.30119]
[1735724674291,3.2078,3326.9,3326.4,3.2078]
[1735724674492,3.2078,3326.9,3326.8,0.30116]
[1735724674692,3.2078,3326.9,3326.8,1.221]
[1735724676183,3.50895,3326.9,3326.8,1.221]
[1735724678795,3.2078,3326.9,3326.8,1.52216]
[1735724679402,3.2078,3326.9,3326.8,3.82518014]
[1735724681895,0.457,3327.2,3326.8,3.52402014]
[1735724682101,0.457,3327.2,3327.1,2.60415014]
[1735724683899,3.2078,3327.3,3327.2,0.30112]
[1735724684203,3.2078,3327.3,3327.1,2.30302014]
[1735724684204,0.4583,3327.6,3327.1,2.30302014]
[1735724684397,0.4583,3327.6,3327.5,0.3011]
[1735724685301,0.4583,3327.6,3327.4,2.30302014]
[1735724685502,0.4583,3327.6,3327.4,2.60412014]
[1735724686105,0.4583,3327.6,3327.4,2.30302014]
[1735724686303,0.4583,3327.6,3327.3,0.30111]
[1735724686701,0.4583,3327.6,3327.4,0.3011]
[1735724686897,0.4583,3327.6,3327.4,0.30111]
[1735724687100,0.4438,3327.5,3327.1,2.60415014]
[1735724687306,0.7449,3327.5,3327.1,2.60415014]
[1735724688305,0.4438,3327.5,3327.4,0.30111]
[1735724688804,0.4438,3327.5,3327.2,0.30112]
[1735724688998,0.4438,3327.5,3327.1,2.30302014]
[1735724688999,0.7449,3327.5,3327.1,2.60415014]
[1735724689197,0.7449,3327.5,3327.2,0.30112]
[1735724689396,0.4438,3327.5,3327.1,2.30302014]
[1735724689604,0.30111,3327.4,3327.1,2.60415014]
[1735724689902,0.4438,3327.5,3327.1,2.30302014]
[1735724690096,0.7449,3327.5,3327.2,0.30112]
[1735724690503,0.4438,3327.5,3327.2,1.22]
[1735724690807,0.4438,3327.5,3327.4,0.30111]
[1735724695605,3.2078,3327.7,3327.2,1.22]
[1735724695806,3.2078,3328.2,3327.9,0.30105]
[1735724696004,3.2078,3328.2,3327.8,2.30302014]
[1735724696204,3.2078,3328.2,3328.1,0.30104]
[1735724696403,1.3988,3328.4,3327.8,2.30302014]
[1735724696606,1.3988,3328.4,3328.3,0.30102]
[1735724699097,0.9473,3328.4,3328.3,0.30102]
[1735724700309,0.9473,3328.4,3328.2,1.22]
[1735724702007,0.9473,3328.4,3328.3,0.30102]
[1735724703115,0.4767,3328.4,3328.3,0.30102]
[1735724704512,3.2078,3328.6,3328.5,0.30101]
[1735724704707,3.2078,3328.6,3328.5,2.60403014]
[1735724707211,0.4719,3328.7,3328.2,3.52302014]
[1735724707510,0.30102,3328.4,3328.3,1.219]
[1735724707909,0.4661,3328.5,3327.9,2.30302014]
[1735724708111,3.2078,3328.2,3327.4,3.2078]
[1735724708405,3.2078,3328.2,3327.4,4.4268]
[1735724708406,1.05366,3328.1,3327.4,4.4268]
[1735724708612,0.30109,3327.6,3327.4,4.4268]
[1735724708917,0.4661,3327.5,3327.4,4.72791]
[1735724709214,0.4661,3327.5,3327.4,4.4268]
[1735724711014,0.9112,3327.5,3327.4,4.4268]
[1735724711417,1.2123,3327.5,3327.4,3.2078]
[1735724713713,1.2123,3327.5,3327.2,0.30112]
[1735724714013,0.30111,3327.4,3327.1,0.30113]
[1735724715114,0.30112,3327.3,3327.0,3.52202014]
[1735724716116,0.9112,3327.5,3327.0,3.52202014]
[1735724716312,0.30111,3327.4,3327.0,3.82316014]
[1735724717219,0.9112,3327.5,3327.0,3.52202014]
[1735724717414,1.2123,3327.5,3327.1,0.30113]
[1735724718412,0.4451,3327.5,3327.3,2.30302014]
[1735724718619,0.4451,3327.5,3327.4,0.30111]
[1735724719018,0.4531,3328.0,3327.3,2.30302014]
[1735724719219,0.4643,3327.9,3327.3,2.30302014]
[1735724719516,0.4643,3327.9,3327.3,2.60413014]
[1735724719716,0.4643,3327.9,3327.0,4.4268]
[1735724719717,0.4643,3327.9,3327.0,3.52202014]
[1735724720113,0.30108,3327.7,3327.3,0.30111]
[1735724720319,0.30109,3327.6,3327.3,0.30111]
[1735724721315,0.4643,3327.9,3327.0,3.52202014]
[1735724721517,0.4643,3327.9,3327.3,2.30302014]
[1735724721717,0.76535,3327.9,3327.6,0.30107]
[1735724722821,0.76535,3327.9,3327.3,2.30302014]
[1735724722822,0.30107,3327.8,3327.5,0.30108]
[1735724723124,0.30107,3327.8,3327.3,2.30302014]
[1735724723424,0.4643,3327.9,3327.3,2.30302014]
[1735724723719,0.30107,3327.8,3327.5,0.30108]
[1735724724316,0.30107,3327.8,3327.6,0.30109]
[1735724724516,0.30107,3327.8,3327.4,0.3011]
[1735724724833,0.30111,3327.4,3327.3,1.22]
[1735724726619,3.2078,3327.7,3326.7,2.30302014]
[1735724726825,0.30115,3327.0,3326.7,3.52302014]
[1735724727024,0.4886,3326.9,3326.6,3.2078]
[1735724727215,3.2078,3326.8,3326.4,7.08027941]
[1735724727422,0.30119,3326.5,3326.4,7.08027941]
[1735724729032,0.30121,3326.3,3326.1,0.30122]
[1735724729419,0.4464,3326.6,3325.9,4.4278]
[1735724729619,0.4464,3326.6,3326.1,2.30302014]
[1735724729824,0.4666,3326.7,3326.6,0.30118]
[1735724730618,0.4666,3326.7,3326.1,2.30302014]
[1735724730926,0.76778,3326.7,3326.4,0.30119]
[1735724731123,0.76778,3326.7,3326.5,0.30118]
[1735724732024,0.30119,3326.6,3326.4,0.30119]
[1735724732224,0.4666,3326.7,3326.1,2.30302014]
[1735724732225,0.3012,3326.4,3326.1,2.30302014]
[1735724732417,0.4666,3326.7,3326.1,2.30302014]
[1735724732626,0.30119,3326.6,3326.4,0.30119]
[1735724733322,0.30119,3326.5,3326.3,0.3012]
[1735724733524,0.4666,3326.7,3325.9,3.2078]
[1735724733720,0.4666,3326.7,3325.9,4.4278]
[1735724733916,0.30121,3326.3,3326.1,0.30122]
[1735724735431,0.3012,3326.4,3326.2,0.30121]
[1735724735637,0.4666,3326.7,3326.1,2.30302014]
[1735724735826,0.4666,3326.7,3326.6,0.30118]
[1735724736828,0.76777,3326.7,3326.6,0.30118]
[1735724737619,0.76778,3326.7,3326.5,0.30118]
[1735724737826,3.2078,3326.8,3326.4,2.30302014]
[1735724738427,3.50897,3326.8,3326.6,0.30118]
[1735724739933,3.2078,3326.8,3326.4,2.30302014]
[1735724740138,3.2078,3326.8,3326.2,0.4474]
[1735724740328,0.30119,3326.6,3326.4,0.30119]
[1735724741228,0.30118,3326.6,3326.4,0.30119]
[1735724741935,0.77697,3326.7,3326.5,0.30118]
[1735724742735,0.4758,3326.7,3326.2,0.4474]
[1735724742933,0.4758,3326.7,3326.1,1.22]
[1735724743134,0.3012,3326.4,3326.2,0.30122]
[1735724743549,0.30121,3326.3,3326.1,1.22]
[1735724743735,0.30121,3326.3,3326.1,1.52122]
[1735724745031,0.30121,3326.3,3326.2,0.30122]
[1735724745542,0.4758,3326.7,3326.2,0.30122]
[1735724745730,0.3012,3326.4,3326.1,1.22]
[1735724745933,0.4758,3326.7,3326.1,1.22]
[1735724745934,0.30119,3326.6,3326.4,0.30119]
[1735724746137,0.4758,3326.7,3326.2,2.30302014]
[1735724746434,0.77698,3326.7,3326.5,0.30118]
[1735724746838,0.30118,3326.6,3326.5,0.30118]
[1735724747344,0.30119,3326.5,3326.4,0.30119]
[1735724747943,0.3012,3326.4,3326.3,0.3012]
[1735724748146,0.4758,3326.7,3326.3,0.3012]
[1735724748446,0.3012,3326.5,3326.3,0.3012]
[1735724748648,0.4758,3326.7,3326.1,1.22]
[1735724748840,0.3012,3326.4,3326.3,0.30121]
[1735724750648,0.4758,3326.7,3326.1,1.22]
[1735724750649,0.30119,3326.6,3326.4,0.30119]
[1735724751051,0.4758,3326.7,3326.2,0.30122]
[1735724751240,0.30123,3326.0,3325.9,4.72904]
[1735724751445,0.30123,3326.0,3325.9,4.4278]
[1735724751646,0.30123,3326.0,3325.9,4.72904]
[1735724752045,0.9175,3326.2,3325.7,0.30125]
[1735724752351,0.9175,3326.2,3325.8,0.30125]
[1735724752747,0.9175,3326.2,3325.6,1.22]
[1735724753242,0.30125,3325.9,3325.6,1.22]
[1735724753448,0.9175,3326.2,3325.7,0.30126]
[1735724753651,0.30124,3326.0,3325.7,0.30126]
[1735724754242,0.9175,3326.2,3325.4,3.6625]
[1735724754442,0.30125,3325.9,3325.5,1.22]
[1735724754748,0.30124,3326.0,3325.7,0.30126]
[1735724754948,0.30125,3325.9,3325.6,0.30127]
[1735724755147,0.30124,3326.0,3325.7,0.30126]
[1735724755350,0.9175,3326.2,3325.6,2.30302014]
[1735724755547,0.30123,3326.1,3325.8,0.30125]
[1735724755948,0.9175,3326.2,3325.8,0.30125]
[1735724756253,0.30123,3326.1,3325.8,0.30125]
[1735724756752,0.30121,3326.3,3326.0,0.30123]
[1735724756950,0.30122,3326.2,3325.9,2.60426014]
[1735724757551,3.2078,3326.4,3326.0,0.30123]
[1735724757552,0.30121,3326.3,3326.0,0.30123]
[1735724758051,0.30121,3326.3,3325.9,2.30302014]
[1735724758052,0.30121,3326.3,3326.1,0.30122]
[1735724759854,3.2078,3326.4,3325.6,2.30302014]
[1735724760157,0.30123,3326.1,3325.6,2.30302014]
[1735724760356,0.30123,3326.1,3325.9,0.30124]
[1735724760357,0.4418,3326.0,3325.9,0.30124]
[1735724760654,0.9008,3326.0,3325.9,0.30124]
[1735724761051,0.9008,3326.0,3325.4,4.4278]
[1735724761052,1.3624,3326.0,3325.4,4.4278]
[1735724761255,0.30126,3325.8,3325.6,0.30127]
[1735724761456,0.30126,3325.8,3325.5,0.30127]
[1735724762352,0.30127,3325.7,3325.5,1.22]
[1735724762660,1.3624,3326.0,3325.5,1.22]
[1735724762661,0.30127,3325.6,3325.5,1.22]
[1735724762860,0.30127,3325.6,3325.3,1.52129]
[1735724763157,0.459,3325.5,3325.4,0.30129]
[1735724763749,0.30124,3325.9,3325.3,3.52302014]
[1735724764055,0.30124,3325.9,3325.6,2.60428014]
[1735724764056,0.74234,3325.9,3325.6,2.60428014]
[1735724765350,0.30125,3325.8,3325.6,2.60428014]
[1735724766254,0.4411,3325.9,3325.6,2.30302014]
[1735724766558,0.74235,3325.9,3325.7,0.30126]
[1735724766954,0.4411,3325.9,3325.6,2.30302014]
[1735724767157,0.74234,3325.9,3325.8,0.30125]
[1735724767352,3.6496,3326.0,3325.9,0.30124]
[1735724767557,0.462,3326.2,3326.1,0.30123]
[1735724767859,0.76322,3326.2,3326.1,0.30123]
[1735724768458,0.76322,3326.2,3325.7,0.4551]
[1735724768659,0.76322,3326.2,3326.0,0.30123]
[1735724768858,0.76322,3326.2,3325.7,0.4551]
[1735724769062,0.462,3326.2,3326.1,0.30123]
[1735724771962,6.71615089,3326.5,3326.4,0.3012]
[1735724772157,3.50835089,3326.5,3326.4,0.3012]
[1735724772359,3.50835089,3326.5,3326.4,1.08986442]
[1735724772655,3.50835089,3326.5,3326.4,1.55806442]
[1735724772865,3.50835089,3326.6,3326.5,0.30119]
[1735724773052,3.50835089,3326.6,3326.5,0.32090595]
[1735724773360,3.80953089,3326.6,3326.5,0.46775847]
[1735724774157,0.30118,3326.6,3326.5,0.46775847]
[1735724774358,4.42015089,3326.8,3326.2,0.30121]
[1735724774566,0.30119,3326.5,3326.2,0.30121]
[1735724774763,4.42015089,3326.8,3326.3,0.4659701]
[1735724775264,4.42015089,3326.8,3326.7,0.30117]
[1735724775468,5.11566586,3326.8,3326.7,0.30117]
[1735724776665,4.67326586,3326.8,3326.7,1.52017]
[1735724777072,9.07829076,3327.0,3326.9,0.30115]
[1735724777073,6.72842508,3327.0,3326.9,0.30115]
[1735724777568,3.52062508,3327.0,3326.9,2.60417014]
[1735724777765,3.52062508,3327.0,3326.9,2.92476459]
[1735724778573,0.4669,3327.6,3326.9,3.37650459]
[1735724778574,3.52062508,3327.5,3326.9,3.37650459]
[1735724778768,3.52062508,3327.5,3327.4,0.30111]
[1735724780068,0.4669,3327.6,3327.3,2.30302014]
[1735724780268,0.4669,3327.6,3327.5,0.3011]
[1735724780573,0.4669,3327.6,3327.4,0.3011]
[1735724780771,0.4669,3327.6,3327.3,0.30111]
[1735724782272,0.4669,3327.6,3327.4,0.30111]
[1735724782478,0.4669,3327.6,3327.5,0.3011]
[1735724782776,0.4669,3327.6,3327.4,0.3011]
[1735724783672,0.4669,3327.6,3327.0,0.4502]
[1735724783872,0.30113,3327.2,3326.9,1.52015]
[1735724784070,0.8941,3327.1,3327.0,0.30114]
[1735724784371,1.3306,3327.1,3327.0,0.30114]
[1735724784567,0.874,3327.1,3327.0,0.30114]
[1735724784775,3.2078,3327.4,3327.3,0.30112]
[1735724791974,3.2078,3327.4,3326.9,3.52202014]
[1735724792185,0.30114,3327.1,3327.0,1.219]
[1735724792477,0.30117,3326.8,3326.5,5.02514304]
[1735724792673,0.9753,3326.7,3326.5,5.02514304]
[1735724793780,0.9753,3326.7,3326.5,6.24414304]
[1735724793965,0.9753,3326.7,3326.5,5.94296304]
[1735724794171,0.9753,3326.7,3326.6,0.30118]
[1735724800983,3.2078,3327.1,3327.0,0.30114]
[1735724801180,0.9641,3327.3,3326.9,2.30302014]
[1735724801483,0.9641,3327.3,3327.2,0.30113]
[1735724803175,0.9641,3327.3,3326.9,2.30302014]
[1735724803371,0.9641,3327.3,3327.0,0.32070246]
[1735724803587,0.9641,3327.3,3327.1,0.30113]
[1735724803984,0.4927,3327.2,3327.1,0.30113]
[1735724804574,0.4927,3327.2,3326.9,0.30115]
[1735724804779,0.30114,3327.1,3326.8,0.30116]
[1735724805181,4.00163,3327.2,3326.9,0.30114]
[1735724805385,3.7005,3327.2,3327.1,0.30113]
[1735724805587,0.79383,3327.2,3326.9,0.30114]
[1735724806081,0.4927,3327.2,3327.0,0.30114]
[1735724806587,0.79383,3327.2,3326.9,0.30115]
[1735724806983,4.00163,3327.2,3326.9,0.30115]
[1735724807184,3.7005,3327.2,3327.0,0.30114]
[1735724808083,3.7005,3327.2,3326.6,2.30302014]
[1735724808387,0.30116,3326.9,3326.6,0.30117]
[1735724808591,0.30116,3326.9,3326.6,0.30118]
[1735724808887,0.4514,3326.8,3326.7,0.30117]
[1735724812482,0.4514,3326.8,3326.7,0.77057229]
[1735724814782,2.79516534,3327.1,3327.0,0.30114]
[1735724815188,2.33776534,3327.1,3327.0,0.62194107]
[1735724815391,2.33776534,3327.1,3327.0,1.09135599]
[1735724816195,0.489,3327.5,3327.3,0.30112]
[1735724816196,2.33776534,3327.4,3327.3,0.30112]
[1735724817489,0.489,3327.5,3327.3,0.30112]
[1735724817691,0.30112,3327.3,3327.1,1.219]
[1735724818189,0.489,3327.5,3327.1,1.219]
[1735724818495,2.33776534,3327.4,3327.1,1.219]
[1735724818787,2.33776534,3327.4,3327.3,0.30111]
[1735724819091,2.33776534,3327.4,3327.2,0.30112]
[1735724819291,2.33776534,3327.4,3327.1,1.219]
[1735724819292,0.30113,3327.2,3327.1,1.219]
[1735724819493,3.50893,3327.2,3327.1,1.219]
[1735724819887,3.2078,3327.2,3327.1,1.52013]
[1735724820393,3.50893,3327.2,3327.1,1.219]
[1735724821388,5.54556534,3327.2,3327.1,1.52013]
[1735724821589,2.33776534,3327.2,3327.1,1.52013]
[1735724822499,2.63888534,3327.3,3327.1,1.52013]
[1735724822893,2.33776534,3327.3,3327.2,0.30112]
[1735724823190,2.33776534,3327.3,3327.1,1.219]
[1735724823396,2.63888534,3327.3,3327.1,1.52012]
[1735724823597,2.63888534,3327.3,3327.2,0.30112]
[1735724823598,2.33776534,3327.3,3327.2,0.30112]
[1735724823995,2.33776534,3327.3,3327.2,0.77802]
[1735724824697,2.33776534,3327.3,3327.2,0.30112]
[1735724824897,2.33776534,3327.3,3327.2,0.77183628]
[1735724825094,0.30112,3327.3,3327.2,0.47071628]
[1735724825592,0.30112,3327.3,3327.2,0.77183628]
[1735724826989,0.30112,3327.3,3327.2,0.47071628]
[1735724827598,0.30112,3327.2,3327.1,1.219]
[1735724827795,3.52062508,3327.4,3326.8,4.72396304]
[1735724828001,0.30115,3326.9,3326.8,4.72396304]
[1735724828505,0.9805,3327.0,3326.7,1.51917]
[1735724828796,0.30116,3326.8,3326.7,1.218]
[1735724829600,0.30116,3326.8,3326.6,5.02514304]
[1735724830102,0.30116,3326.8,3326.6,0.30118]
[1735724830702,4.67326586,3326.9,3326.5,3.2078]
[1735724831000,0.9805,3327.0,3326.6,2.30302014]
[1735724831001,3.51934348,3326.8,3326.6,2.30302014]
[1735724831198,3.51934348,3326.8,3326.7,0.61955948]
[1735724831397,3.51934348,3326.8,3326.7,1.11745948]
[1735724831789,3.51934348,3326.8,3326.7,1.11746466]
[1735724831998,3.51934348,3326.8,3326.7,1.11746456]
[1735724832302,2.34712112,3326.8,3326.7,1.11746456]
[1735724833402,2.34712112,3326.8,3326.7,1.48396884]
[1735724833999,1.63042112,3326.8,3326.7,7.07033163]
[1735724835006,3.51934348,3327.5,3326.7,12.02681995]
[1735724835199,3.51934348,3327.5,3327.3,0.30111]
[1735724835506,3.51934348,3327.5,3327.3,1.51911]
[1735724836308,3.51934348,3327.5,3327.4,0.46444025]
[1735724836497,8.05223348,3327.6,3327.4,0.46444025]
[1735724836701,7.75114348,3327.6,3327.4,0.46444025]
[1735724836903,8.05223348,3327.6,3327.3,1.51911]
[1735724837600,3.51934348,3327.5,3327.4,0.46437996]
[1735724838710,7.75114348,3327.6,3327.4,0.76548996]
[1735724839209,8.05223348,3327.6,3327.4,0.30111]
[1735724839416,7.75114348,3327.6,3327.4,0.30111]
[1735724840005,8.05223348,3327.6,3327.4,0.30111]
[1735724840607,8.05223348,3327.6,3327.3,1.51911]
[1735724842001,8.05223348,3327.6,3327.4,0.3011]
[1735724842205,7.75114348,3327.6,3327.4,0.3011]
[1735724843501,7.75114348,3327.6,3327.5,0.3011]
[1735724843905,6.72714348,3327.6,3327.5,0.3011]
[1735724844110,6.72714348,3327.6,3327.5,0.6768783]
[1735724844312,6.72714348,3327.6,3327.5,0.67685721]
[1735724844501,3.2078,3327.6,3327.5,0.99407095]
[1735724844704,3.2078,3327.6,3327.5,0.99409729]
[1735724845413,3.51934348,3327.7,3327.5,1.29414792]
[1735724845613,3.51934348,3327.7,3327.6,3.89825806]
[1735724845907,2.74454348,3327.7,3327.6,3.89825806]
[1735724846111,2.74454348,3328.1,3328.0,0.30105]
[1735724846313,2.74454348,3328.1,3328.0,5.81187014]
[1735724846508,2.74454348,3328.1,3328.0,5.80420606]
[1735724846708,2.74454348,3328.1,3328.0,0.77159703]
[1735724846907,2.74454348,3328.1,3328.0,1.10350918]
[1735724847211,2.74454348,3328.1,3328.0,0.77159703]
[1735724847506,6.66230076,3328.5,3328.4,0.30102]
[1735724847507,0.4908,3328.5,3328.4,0.30102]
[1735724847706,7.88106586,3329.0,3328.4,0.33191125]
[1735724847912,0.483,3328.9,3328.8,0.30098]
[1735724848111,0.9796,3328.9,3328.7,1.218]
[1735724848315,0.9796,3328.9,3328.7,1.51898]
[1735724848710,0.9796,3328.9,3328.8,0.30098]
[1735724855223,0.9796,3328.9,3328.7,1.218]
[1735724855521,0.9796,3328.9,3328.7,1.51898]
[1735724855721,0.9796,3328.9,3328.8,0.30098]
[1735724857622,3.2078,3329.0,3328.9,0.30097]
[1735724863227,4.2036,3329.6,3328.9,0.33067507]
[1735724863427,4.2036,3329.6,3329.3,2.30302014]
[1735724863729,4.2036,3329.6,3329.5,0.30092]
[1735724863929,4.2036,3329.6,3329.5,1.51792]
[1735724865129,3.7074,3329.6,3329.5,1.51792]
[1735724869426,3.7074,3329.6,3329.5,1.217]
[1735724869626,3.7074,3329.6,3329.0,2.30302014]
[1735724869838,0.30093,3329.4,3329.1,1.51795]
[1735724871035,0.9668,3329.5,3329.1,1.217]
[1735724871238,1.26772,3329.5,3329.2,0.30094]
[1735724871640,0.30093,3329.4,3329.2,0.30094]
[1735724872035,0.0020008,3329.4,3329.2,0.30094]
[1735724873140,0.0020008,3329.4,3329.3,0.30093]
[1735724878935,0.0020008,3329.4,3329.3,2.60395014]
[1735724879343,0.5084008,3329.4,3329.3,2.60395014]
[1735724882543,0.5084008,3329.4,3329.3,2.92995807]
[1735724883145,0.5084008,3329.4,3329.3,2.92998005]
[1735724886138,0.5084008,3329.4,3329.3,2.9301117]
[1735724887441,0.5084008,3329.4,3329.3,4.52622577]
[1735724887647,0.5084008,3329.4,3329.3,5.04829712]
[1735724888149,0.0020008,3329.4,3329.3,5.04829712]
[1735724888345,0.0020008,3329.4,3329.3,5.64513921]
[1735724888649,0.0020008,3329.4,3329.3,5.64513662]
[1735724889244,0.0020008,3329.4,3329.3,5.64525692]
[1735724889742,0.0020008,3329.4,3329.3,4.79696468]
[1735724889942,0.0020008,3329.4,3329.3,5.64526637]
[1735724892349,0.0020008,3329.4,3329.3,5.64525534]
[1735724894553,0.0020008,3329.4,3329.3,4.89254878]
[1735724894554,0.4765008,3329.4,3329.3,4.89254878]
[1735724896154,0.4765008,3329.4,3329.3,4.37051051]
[1735724896355,0.4765008,3329.4,3329.3,3.4006572]
[1735724897850,0.4765008,3329.4,3329.3,0.79670706]
[1735724898051,0.4765008,3329.4,3329.3,1.6874416]
[1735724898452,0.4765008,3329.4,3329.3,1.9883716]
[1735724899451,0.4765008,3329.4,3329.3,1.6874416]
[1735724901054,0.4765008,3329.4,3329.3,1.9883716]
[1735724902255,0.4765008,3329.4,3329.3,4.29139174]
[1735724902657,0.4765008,3329.4,3329.3,5.04407296]
[1735724902856,0.0020008,3329.4,3329.3,5.04407296]
[1735724903156,0.0020008,3329.4,3329.3,5.73136842]
[1735724904157,0.0020008,3329.4,3329.3,6.26797778]
[1735724904353,0.0020008,3329.4,3329.3,5.04407296]
[1735724904558,0.0020008,3329.4,3329.3,6.86995923]
[1735724904756,0.0020008,3329.4,3329.3,6.11727801]
[1735724904958,0.0020008,3329.4,3329.3,6.4663167]
[1735724905155,0.0020008,3329.4,3329.3,8.76933684]
[1735724905359,0.0020008,3329.4,3329.3,8.42029815]
[1735724905556,0.0020008,3329.4,3329.3,6.46619077]
[1735724905758,0.0020008,3329.4,3329.3,13.42029815]
[1735724906263,0.0020008,3329.4,3329.3,11.46620896]
[1735724906470,0.0020008,3329.4,3329.3,11.7061241]
[1735724906659,4.67326586,3329.8,3329.7,0.3009]
[1735724906860,4.67326586,3329.8,3329.7,4.42980641]
[1735724907057,4.67326586,3329.8,3329.7,4.90024801]
[1735724907258,3.52597581,3329.8,3329.7,5.38324801]
[1735724907458,3.52597581,3329.8,3329.7,5.37806227]
[1735724908060,3.52597581,3329.8,3329.7,5.37772286]
[1735724908459,3.52597581,3329.8,3329.7,6.13022285]
[1735724908668,3.52597581,3330.0,3329.9,0.30088]
[1735724908871,3.52597581,3330.0,3329.9,3.36899609]
[1735724909666,3.52597581,3330.0,3329.9,3.36887498]
[1735724910068,4.01887581,3330.0,3329.9,3.36887498]
[1735724910670,4.01887581,3330.0,3329.9,3.36877524]
[1735724911266,0.4929,3330.0,3329.9,2.83541444]
[1735724911465,0.4929,3330.0,3329.9,1.52382159]